[Event "EYCC G10-ch 2024"]
[Site "Prague"]
[Date "2024.08.28"]
[Round "6.14"]
[White "Trzcinska, Weronika"]
[Black "Macakova, Bianka"]
[Result "1-0"]
[ECO "C47"]
[WhiteElo "1490"]
[BlackElo "1568"]
[Annotator "NA RC COMBH"]
[PlyCount "105"]
[EventDate "2024.08.19"]
[EventType "swiss"]
[EventCountry "CZE"]
[SourceTitle "playchess.com"]
[Source "ChessBase"]
[SourceQuality "1"]
[TimeControl "5400+30"]

1. e4 {[%emt 0:00:01]} e5 {[%emt 0:00:16]} 2. Nf3 {[%emt 0:00:20]} Nc6 {[%emt 0:01:05]} 3. Bc4 {[%emt 0:00:44]} Nf6 {[%emt 0:04:44]} 4. Nc3 {[%emt 0:04:19]} Nxe4 {[%emt 0:04:08]} 5. Nxe4 {[%emt 0:00:28]} d5 {[%emt 0:00:43]} 6. Bxd5 {[%emt 0:00:57]} Qxd5 {[%emt 0:00:30]} 7. Nc3 {[%emt 0:00:25]} Qd6 {[%emt 0:02:15]} 8. h3 Be6 {[%emt 0:14:55]} 9. d3 {[%emt 0:08:34]} Be7 {[%emt 0:12:31]} 10. Be3 {[%emt 0:07:30]} f5 {[%emt 0:18:58]} 11. Bg5 {[%emt 0:12:46]} O-O {[%emt 0:12:22]} 12. Bxe7 {[%emt 0:05:33]} Qxe7 {[%emt 0:02:13]} 13. O-O {[%emt 0:01:39]} e4 {[%emt 0:08:28]} 14. dxe4 {[%emt 0:01:37]} fxe4 {[%emt 0:01:12]} 15. Nd2 {[%emt 0:02:39]} e3 {[%emt 0:04:21]} 16. fxe3 {[%emt 0:02:49]} Qg5 {[%emt 0:00:54]} 17. Rxf8+ {[%emt 0:01:42]} Rxf8 {[%emt 0:01:59]} 18. Kh1 {[%emt 0:05:17]} Rf2 {[%emt 0:02:57]} 19. Qg1 {[%emt 0:24:31]} Rxd2 {[%emt 0:02:50]} 20. Ne4 {[%emt 0:00:34]} Qd5 {[%emt 0:00:27]} 21. Nxd2 {[%emt 0:00:59]} Qxd2 {[%emt 0:00:41]} 22. Rf1 {[%emt 0:01:27]} Qxc2 {[%emt 0:01:48]} 23. Rf2 {[%emt 0:00:43]} Qc5 {[%emt 0:00:50]} 24. Qf1 {[%emt 0:00:36]} h6 {[%emt 0:00:24]} 25. Qd3 {[%emt 0:01:21]} Qe7 {[%emt 0:00:48]} 26. a3 {[%emt 0:01:09]} Ne5 {[%emt 0:00:16]} 27. Qe4 {[%emt 0:01:05]} Nc6 {[%emt 0:00:18]} 28. b4 {[%emt 0:00:51]} a6 {[%emt 0:00:26]} 29. Rf4 {[%emt 0:01:13]} Qd6 {[%emt 0:00:34]} 30. Qg6 {[%emt 0:01:46]} Qd7 {[%emt 0:00:47]} 31. Kh2 {[%emt 0:02:35]} Ne5 {[%emt 0:00:33]} 32. Qg3 {[%emt 0:00:52]} Bf7 {[%emt 0:00:34]} 33. Rd4 {[%emt 0:00:51]} Qe7 {[%emt 0:00:23]} 34. Re4 {[%emt 0:01:10]} Nf3+ {[%emt 0:00:41]} 35. Qxf3 {[%emt 0:00:16]} Qd7 {[%emt 0:00:13]} 36. Rd4 {[%emt 0:00:32]} Qe7 {[%emt 0:00:18]} 37. Qxb7 {[%emt 0:00:56]} Qe5+ {[%emt 0:00:27]} 38. Kh1 {[%emt 0:01:19]} Qxe3 {[%emt 0:00:25]} 39. Qa8+ {[%emt 0:01:08]} Be8 {[%emt 0:00:52]} 40. Re4 {[%emt 0:01:07]} Qc1+ {[%emt 0:00:25]} 41. Kh2 {[%emt 0:00:24]} Qxa3 {[%emt 0:00:45]} 42. Rxe8+ {[%emt 0:00:42]} Kf7 {[%emt 0:00:34]} 43. Rf8+ {[%emt 0:00:30]} Ke7 {[%emt 0:00:19]} 44. Qe8+ {[%emt 0:00:43]} Kd6 {[%emt 0:00:12]} 45. Qg6+ {[%emt 0:00:42]} Ke5 {[%emt 0:00:55]} 46. Qf5+ {[%emt 0:00:32]} Kd4 {[%emt 0:00:14]} 47. Rd8+ {[%emt 0:00:23]} Kc4 {[%emt 0:00:41]} 48. Qc5+ {[%emt 0:00:56]} Kb3 {[%emt 0:00:11]} 49. Rd3+ {[%emt 0:00:27]} Kb2 {[%emt 0:00:16]} 50. Qf2+ {[%emt 0:01:18]} Kb1 {[%emt 0:00:31]} 51. Rxa3 {[%emt 0:00:31]} c5 {[%emt 0:00:15]} 52. Ra2 {[%emt 0:00:17]} cxb4 {[%emt 0:00:24]} 53. Qb2# {[%emt 0:00:09]} 1-0

[Event "EYCC G10-ch 2024"]
[Site "Prague"]
[Date "2024.08.29"]
[Round "7.1"]
[White "Chen, Yuefan"]
[Black "Anistoroaei, Maria"]
[Result "1/2-1/2"]
[ECO "A40"]
[WhiteElo "1682"]
[BlackElo "1627"]
[Annotator "NA RC"]
[PlyCount "119"]
[EventDate "2024.08.19"]
[EventType "swiss"]
[EventCountry "CZE"]
[SourceTitle "playchess.com"]
[Source "ChessBase"]
[SourceQuality "1"]
[TimeControl "5400+30"]

1. d4 {[%emt 0:00:02]} b6 {[%emt 0:00:18]} 2. c4 {[%emt 0:00:26]} Bb7 {[%emt 0:00:08]} 3. Nc3 {[%emt 0:00:58]} e6 {[%emt 0:00:21]} 4. Bf4 {[%emt 0:07:41]} Nf6 {[%emt 0:01:09]} 5. e3 {[%emt 0:04:24]} Be7 {[%emt 0:02:04]} 6. h3 {[%emt 0:03:51]} O-O {[%emt 0:04:06]} 7. Nf3 {[%emt 0:01:20]} d5 {[%emt 0:09:17]} 8. Be2 {[%emt 0:04:44]} c5 {[%emt 0:05:30]} 9. O-O {[%emt 0:03:55]} Nbd7 {[%emt 0:02:39]} 10. Bh2 {[%emt 0:04:46]} a6 {[%emt 0:07:28]} 11. a4 {[%emt 0:04:56]} Rc8 {[%emt 0:04:17]} 12. cxd5 {[%emt 0:02:12]} Nxd5 {[%emt 0:01:29]} 13. Nxd5 {[%emt 0:01:36]} Bxd5 {[%emt 0:00:51]} 14. Bxa6 {[%emt 0:01:31]} Ra8 {[%emt 0:02:59]} 15. Bb5 {[%emt 0:02:09]} Nf6 {[%emt 0:03:12]} 16. dxc5 {[%emt 0:04:58]} bxc5 {[%emt 0:04:11]} 17. Ne5 {[%emt 0:05:08]} Qb6 {[%emt 0:03:54]} 18. Qe2 {[%emt 0:03:15]} Rfd8 {[%emt 0:10:52]} 19. Rfd1 {[%emt 0:04:16]} Bd6 {[%emt 0:09:37]} 20. Nc4 {[%emt 0:07:22]} Bxh2+ {[%emt 0:01:02]} 21. Kxh2 Qb7 22. f3 {[%emt 0:02:03]} Nh5 {[%emt 0:09:59]} 23. Kg1 {[%emt 0:04:09]} Ng3 {[%emt 0:02:31]} 24. Qc2 {[%emt 0:04:31]} Nf5 {[%emt 0:02:24]} 25. Qd3 {[%emt 0:05:46]} Qc7 {[%emt 0:01:47]} 26. Qc3 {[%emt 0:02:15]} Qg3 {[%emt 0:02:50]} 27. Qe1 {[%emt 0:02:32]} Qg5 {[%emt 0:01:18]} 28. e4 {[%emt 0:03:11]} Bxc4 {[%emt 0:05:15]} 29. exf5 {[%emt 0:00:41]} Bxb5 {[%emt 0:00:52]} 30. axb5 {[%emt 0:00:11]} Rxa1 {[%emt 0:00:26]} 31. Rxd8+ {[%emt 0:01:06]} Qxd8 {[%emt 0:00:09]} 32. Qxa1 {[%emt 0:00:04]} exf5 {[%emt 0:00:22]} 33. b3 {[%emt 0:01:00]} h6 {[%emt 0:00:41]} 34. Qc3 {[%emt 0:01:45]} Qd6 {[%emt 0:02:04]} 35. Kf2 {[%emt 0:00:50]} f4 {[%emt 0:01:18]} 36. Kf1 {[%emt 0:03:10]} Qd5 {[%emt 0:00:35]} 37. Qc4 {[%emt 0:01:09]} Qe5 {[%emt 0:00:24]} 38. Qe4 {[%emt 0:01:28]} Qa1+ {[%emt 0:00:25]} 39. Qe1 {[%emt 0:00:21]} Qb2 {[%emt 0:00:32]} 40. Qd1 {[%emt 0:01:18]} Qf6 {[%emt 0:00:25]} 41. Qe2 {[%emt 0:00:37]} Kf8 {[%emt 0:00:44]} 42. Qa2 {[%emt 0:01:09]} Qb6 {[%emt 0:00:26]} 43. Qa8+ {[%emt 0:00:22]} Ke7 {[%emt 0:00:08]} 44. Qc6 {[%emt 0:00:16]} Qxc6 {[%emt 0:00:21]} 45. bxc6 {[%emt 0:00:04]} Kd6 {[%emt 0:00:02]} 46. Ke2 {[%emt 0:00:05]} Kxc6 {[%emt 0:00:12]} 47. Kd3 {[%emt 0:00:12]} Kd5 {[%emt 0:00:26]} 48. Kc3 {[%emt 0:00:08]} g5 {[%emt 0:00:26]} 49. Kd3 {[%emt 0:00:04]} f5 {[%emt 0:00:30]} 50. Kc3 {[%emt 0:00:07]} h5 {[%emt 0:00:12]} 51. Kd3 {[%emt 0:00:09]} h4 {[%emt 0:00:26]} 52. Kc3 {[%emt 0:00:10]} g4 {[%emt 0:01:57]} 53. Kd3 {[%emt 0:00:03]} g3 {[%emt 0:00:53]} 54. Kc3 {[%emt 0:00:04]} Kd6 {[%emt 0:00:23]} 55. Kd3 {[%emt 0:00:13]} Kc6 {[%emt 0:00:30]} 56. Kc4 {[%emt 0:00:20]} Kd6 {[%emt 0:00:12]} 57. Kd3 {[%emt 0:00:23]} Kd5 {[%emt 0:00:20]} 58. Kc3 {[%emt 0:00:04]} Kc6 {[%emt 0:00:22]} 59. Kc4 {[%emt 0:00:18]} Kd6 {[%emt 0:00:07]} 60. Kd3 {[%emt 0:00:03]} 1/2-1/2

[Event "EYCC G10-ch 2024"]
[Site "Prague"]
[Date "2024.08.29"]
[Round "7.2"]
[White "Rzadkowska, Lila"]
[Black "Ahmadli, Mehriban"]
[Result "1-0"]
[ECO "A30"]
[WhiteElo "1794"]
[BlackElo "1646"]
[Annotator "NA RC"]
[PlyCount "77"]
[EventDate "2024.08.19"]
[EventType "swiss"]
[EventCountry "CZE"]
[SourceTitle "playchess.com"]
[Source "ChessBase"]
[SourceQuality "1"]
[TimeControl "5400+30"]

1. c4 {[%emt 0:00:06]} c5 {[%emt 0:00:07]} 2. g3 {[%emt 0:00:51]} Nc6 {[%emt 0:00:06]} 3. Bg2 {[%emt 0:00:10]} g6 {[%emt 0:04:07]} 4. e3 {[%emt 0:00:52]} Bg7 {[%emt 0:00:31]} 5. Ne2 {[%emt 0:01:07]} Nf6 {[%emt 0:03:40]} 6. Nbc3 {[%emt 0:00:16]} e6 {[%emt 0:01:06]} 7. Nf4 {[%emt 0:05:25]} O-O {[%emt 0:13:40]} 8. O-O {[%emt 0:01:59]} Re8 {[%emt 0:02:31]} 9. d4 {[%emt 0:05:24]} cxd4 {[%emt 0:03:55]} 10. exd4 {[%emt 0:00:24]} d6 {[%emt 0:19:40]} 11. Be3 {[%emt 0:10:44]} e5 {[%emt 0:09:02]} 12. dxe5 {[%emt 0:01:42]} dxe5 {[%emt 0:02:33]} 13. Nfd5 {[%emt 0:01:08]} Ne7 {[%emt 0:03:25]} 14. Bg5 {[%emt 0:01:55]} Nexd5 {[%emt 0:01:32]} 15. Nxd5 {[%emt 0:00:26]} Be6 {[%emt 0:03:49]} 16. Qd2 {[%emt 0:07:17]} Bxd5 {[%emt 0:05:10]} 17. cxd5 {[%emt 0:00:46]} Qd6 {[%emt 0:00:29]} 18. Rac1 {[%emt 0:06:11]} Rad8 {[%emt 0:09:36]} 19. Rfd1 {[%emt 0:00:57]} Rc8 {[%emt 0:05:02]} 20. Qa5 {[%emt 0:05:37]} a6 {[%emt 0:01:58]} 21. Qa3 {[%emt 0:02:57]} Qd7 {[%emt 0:03:02]} 22. Qa5 {[%emt 0:06:45]} h6 {[%emt 0:01:33]} 23. Be3 {[%emt 0:01:09]} e4 {[%emt 0:02:17]} 24. Rxc8 {[%emt 0:04:05]} Rxc8 {[%emt 0:00:42]} 25. Bd4 {[%emt 0:02:54]} Qg4 {[%emt 0:02:10]} 26. Qd2 {[%emt 0:03:04]} g5 {[%emt 0:01:12]} 27. d6 {[%emt 0:02:28]} Nd7 {[%emt 0:00:27]} 28. Bxg7 {[%emt 0:00:18]} Kxg7 {[%emt 0:00:02]} 29. Qd4+ {[%emt 0:00:22]} f6 {[%emt 0:00:25]} 30. h3 {[%emt 0:01:17]} Qe2 {[%emt 0:00:55]} 31. Bf1 {[%emt 0:01:24]} Qc2 {[%emt 0:00:08]} 32. Rd2 {[%emt 0:00:55]} Qc6 {[%emt 0:00:23]} 33. Be2 {[%emt 0:01:57]} Re8 {[%emt 0:01:00]} 34. Bd1 {[%emt 0:02:15]} Re5 {[%emt 0:00:33]} 35. Bb3 {[%emt 0:01:47]} b5 {[%emt 0:00:41]} 36. Qa7 {[%emt 0:02:23]} Kf8 {[%emt 0:00:25]} 37. Qc7 {[%emt 0:01:15]} Rc5 {[%emt 0:00:20]} 38. Qd8+ {[%emt 0:00:10]} Kg7 {[%emt 0:00:17]} 39. Qg8# {[%emt 0:00:10]} 1-0

[Event "EYCC G10-ch 2024"]
[Site "Prague"]
[Date "2024.08.29"]
[Round "7.3"]
[White "Tykalova, Barbora"]
[Black "Bakhshi, Rana"]
[Result "1/2-1/2"]
[ECO "B52"]
[WhiteElo "1580"]
[BlackElo "1732"]
[Annotator "NA RC"]
[PlyCount "103"]
[EventDate "2024.08.19"]
[EventType "swiss"]
[EventCountry "CZE"]
[SourceTitle "playchess.com"]
[Source "ChessBase"]
[SourceQuality "1"]
[TimeControl "5400+30"]

1. e4 {[%emt 0:00:03]} c5 {[%emt 0:00:43]} 2. Nf3 {[%emt 0:00:08]} d6 {[%emt 0:01:01]} 3. Bb5+ {[%emt 0:00:05]} Bd7 {[%emt 0:01:08]} 4. Bxd7+ {[%emt 0:00:32]} Qxd7 {[%emt 0:00:38]} 5. O-O {[%emt 0:00:16]} Nc6 {[%emt 0:00:49]} 6. c3 {[%emt 0:00:26]} Nf6 {[%emt 0:01:01]} 7. Qe2 {[%emt 0:00:42]} e6 {[%emt 0:02:39]} 8. d4 {[%emt 0:00:34]} cxd4 {[%emt 0:00:38]} 9. cxd4 {[%emt 0:00:10]} d5 {[%emt 0:00:38]} 10. e5 {[%emt 0:00:41]} Ng8 {[%emt 0:00:50]} 11. Nc3 {[%emt 0:02:04]} Nge7 {[%emt 0:01:00]} 12. Nb5 {[%emt 0:01:04]} Nf5 {[%emt 0:01:44]} 13. Be3 {[%emt 0:01:58]} h5 {[%emt 0:01:35]} 14. Rac1 {[%emt 0:05:05]} a6 {[%emt 0:02:36]} 15. Nc3 {[%emt 0:00:48]} Be7 {[%emt 0:08:37]} 16. a3 {[%emt 0:02:57]} g5 {[%emt 0:03:33]} 17. Nxg5 {[%emt 0:05:45]} Bxg5 {[%emt 0:05:46]} 18. Bxg5 {[%emt 0:00:14]} Ncxd4 {[%emt 0:01:24]} 19. Qd1 {[%emt 0:01:11]} h4 {[%emt 0:02:52]} 20. Na4 {[%emt 0:05:02]} Ne2+ {[%emt 0:02:03]} 21. Qxe2 {[%emt 0:00:33]} Qxa4 {[%emt 0:00:20]} 22. Rc7 {[%emt 0:02:13]} h3 {[%emt 0:03:53]} 23. Rfc1 {[%emt 0:03:08]} Qa5 {[%emt 0:06:12]} 24. Rxb7 {[%emt 0:06:21]} d4 {[%emt 0:03:04]} 25. Qc4 {[%emt 0:00:41]} O-O {[%emt 0:04:21]} 26. Qe2 {[%emt 0:01:12]} Qd5 {[%emt 0:04:31]} 27. Qf3 {[%emt 0:09:28]} Qxf3 {[%emt 0:03:27]} 28. gxf3 {[%emt 0:00:09]} Rab8 {[%emt 0:02:33]} 29. Rcc7 {[%emt 0:01:11]} d3 {[%emt 0:02:21]} 30. Rxb8 {[%emt 0:05:57]} Rxb8 {[%emt 0:02:38]} 31. Bf6 {[%emt 0:00:42]} d2 {[%emt 0:00:53]} 32. Rd7 {[%emt 0:00:09]} Rxb2 {[%emt 0:00:40]} 33. Kf1 {[%emt 0:01:38]} Rb1+ {[%emt 0:05:00]} 34. Ke2 {[%emt 0:00:10]} Rh1 {[%emt 0:00:25]} 35. Kxd2 {[%emt 0:00:27]} Nh6 {[%emt 0:02:38]} 36. Bg5 {[%emt 0:01:04]} Rxh2 {[%emt 0:06:00]} 37. Bxh6 {[%emt 0:03:22]} Rg2 {[%emt 0:00:35]} 38. Bf4 {[%emt 0:00:26]} h2 {[%emt 0:00:37]} 39. Bxh2 Rxf2+ {[%emt 0:01:08]} 40. Ke3 {[%emt 0:00:26]} Rxh2 {[%emt 0:00:09]} 41. Ra7 {[%emt 0:00:11]} Ra2 {[%emt 0:00:41]} 42. Rxa6 {[%emt 0:00:19]} Kg7 {[%emt 0:00:14]} 43. a4 {[%emt 0:00:07]} Kg6 {[%emt 0:00:11]} 44. a5 {[%emt 0:00:08]} Kf5 {[%emt 0:00:09]} 45. Kd4 {[%emt 0:00:26]} Ra4+ {[%emt 0:00:38]} 46. Kc5 {[%emt 0:00:11]} Kxe5 {[%emt 0:00:09]} 47. Ra7 {[%emt 0:00:08]} f5 {[%emt 0:00:09]} 48. a6 {[%emt 0:00:07]} Kf4 {[%emt 0:00:28]} 49. Kb5 {[%emt 0:00:13]} Ra1 {[%emt 0:00:11]} 50. Re7 {[%emt 0:00:06]} e5 {[%emt 0:00:17]} 51. Kb6 {[%emt 0:00:08]} e4 {[%emt 0:00:34]} 52. fxe4 {[%emt 0:01:49]} 1/2-1/2

[Event "EYCC G10-ch 2024"]
[Site "Prague"]
[Date "2024.08.29"]
[Round "7.4"]
[White "Slusarczyk, Agnieszka"]
[Black "Constantin-Ciuntu, Anne-Sophie"]
[Result "1/2-1/2"]
[ECO "D38"]
[WhiteElo "1614"]
[BlackElo "1641"]
[Annotator "NA RC"]
[PlyCount "92"]
[EventDate "2024.08.19"]
[EventType "swiss"]
[EventCountry "CZE"]
[SourceTitle "playchess.com"]
[Source "ChessBase"]
[SourceQuality "1"]
[TimeControl "5400+30"]

1. Nf3 {[%emt 0:00:03]} d5 {[%emt 0:02:41]} 2. d4 {[%emt 0:02:06]} Nf6 {[%emt 0:00:13]} 3. c4 {[%emt 0:00:43]} e6 {[%emt 0:00:09]} 4. Nc3 {[%emt 0:01:24]} Bb4 {[%emt 0:01:28]} 5. Qa4+ {[%emt 0:09:02]} Nc6 {[%emt 0:00:18]} 6. Ne5 {[%emt 0:03:12]} Bxc3+ {[%emt 0:01:06]} 7. bxc3 {[%emt 0:00:46]} Bd7 {[%emt 0:00:17]} 8. Nxd7 {[%emt 0:06:32]} Qxd7 {[%emt 0:00:17]} 9. Ba3 {[%emt 0:03:37]} Ne4 {[%emt 0:04:04]} 10. Rc1 {[%emt 0:02:06]} Nd6 {[%emt 0:01:57]} 11. cxd5 {[%emt 0:00:55]} exd5 {[%emt 0:00:13]} 12. e3 {[%emt 0:01:12]} O-O {[%emt 0:04:16]} 13. Qb3 {[%emt 0:08:04]} Ne7 {[%emt 0:02:36]} 14. Be2 {[%emt 0:10:14]} Rab8 {[%emt 0:07:41]} 15. O-O {[%emt 0:03:03]} c6 {[%emt 0:01:19]} 16. Bxd6 {[%emt 0:08:52]} Qxd6 {[%emt 0:00:19]} 17. g3 {[%emt 0:01:47]} Qg6 {[%emt 0:05:33]} 18. Qa3 {[%emt 0:04:12]} Nc8 {[%emt 0:02:24]} 19. c4 {[%emt 0:01:28]} Rd8 {[%emt 0:05:40]} 20. cxd5 {[%emt 0:10:15]} Rxd5 {[%emt 0:00:27]} 21. Rc5 {[%emt 0:00:28]} Qd6 {[%emt 0:00:54]} 22. Qc3 {[%emt 0:02:01]} Ne7 {[%emt 0:04:32]} 23. Bc4 {[%emt 0:03:29]} Rxc5 {[%emt 0:02:31]} 24. dxc5 {[%emt 0:00:11]} Qc7 {[%emt 0:00:23]} 25. Qb3 {[%emt 0:04:59]} Ng6 {[%emt 0:01:56]} 26. f4 {[%emt 0:01:46]} Rd8 {[%emt 0:03:55]} 27. Rb1 {[%emt 0:02:06]} Rd7 {[%emt 0:02:35]} 28. e4 {[%emt 0:01:37]} Rd4 {[%emt 0:05:43]} 29. e5 {[%emt 0:01:21]} Nf8 {[%emt 0:04:27]} 30. e6 {[%emt 0:01:52]} fxe6 {[%emt 0:02:33]} 31. Bxe6+ {[%emt 0:00:15]} Kh8 {[%emt 0:00:19]} 32. Bg4 {[%emt 0:01:34]} Qe7 {[%emt 0:04:53]} 33. Qc3 {[%emt 0:02:34]} Rd5 {[%emt 0:01:23]} 34. Re1 {[%emt 0:00:24]} Qd8 {[%emt 0:03:04]} 35. Qb4 {[%emt 0:02:04]} Rd2 {[%emt 0:00:57]} 36. Re8 {[%emt 0:01:03]} Qxe8 {[%emt 0:00:38]} 37. Qxd2 {[%emt 0:00:02]} Qe7 {[%emt 0:01:11]} 38. Qc3 {[%emt 0:00:34]} Ne6 {[%emt 0:00:31]} 39. Bxe6 {[%emt 0:00:33]} Qxe6 {[%emt 0:00:02]} 40. Qd2 {[%emt 0:00:04]} Qe7 {[%emt 0:01:48]} 41. Qc3 {[%emt 0:00:23]} Qe6 {[%emt 0:01:08]} 42. Qd2 {[%emt 0:01:05]} Kg8 {[%emt 0:00:51]} 43. Qd8+ {[%emt 0:00:30]} Kf7 {[%emt 0:00:15]} 44. Qc7+ {[%emt 0:00:35]} Qe7 {[%emt 0:00:07]} 45. Qa5 {[%emt 0:00:25]} Qe3+ {[%emt 0:00:25]} 46. Kg2 {[%emt 0:00:15]} Qe2+ {[%emt 0:01:14]} 1/2-1/2

[Event "EYCC G10-ch 2024"]
[Site "Prague"]
[Date "2024.08.29"]
[Round "7.5"]
[White "Serradell Munoz, Silvia"]
[Black "Russieva, Svitlana"]
[Result "0-1"]
[ECO "D02"]
[WhiteElo "1619"]
[BlackElo "1597"]
[Annotator "NA RC"]
[PlyCount "110"]
[EventDate "2024.08.19"]
[EventType "swiss"]
[EventCountry "CZE"]
[SourceTitle "playchess.com"]
[Source "ChessBase"]
[SourceQuality "1"]
[TimeControl "5400+30"]

1. d4 {[%emt 0:00:26]} d5 {[%emt 0:00:30]} 2. Nf3 {[%emt 0:00:33]} Nf6 {[%emt 0:00:37]} 3. c4 {[%emt 0:00:40]} e6 {[%emt 0:00:46]} 4. e3 {[%emt 0:00:58]} a6 {[%emt 0:01:26]} 5. Nc3 {[%emt 0:03:55]} Be7 {[%emt 0:02:06]} 6. Bd3 {[%emt 0:00:55]} dxc4 {[%emt 0:01:41]} 7. Bxc4 {[%emt 0:00:58]} b5 {[%emt 0:01:10]} 8. Bd3 {[%emt 0:00:34]} Bb7 {[%emt 0:00:56]} 9. O-O {[%emt 0:01:23]} Nbd7 {[%emt 0:01:36]} 10. Re1 {[%emt 0:00:39]} c5 {[%emt 0:03:16]} 11. e4 {[%emt 0:02:37]} cxd4 {[%emt 0:04:25]} 12. Nxd4 {[%emt 0:00:22]} Ne5 {[%emt 0:01:49]} 13. Bc2 {[%emt 0:01:08]} Bc5 {[%emt 0:02:17]} 14. Be3 {[%emt 0:06:29]} Neg4 {[%emt 0:01:10]} 15. Nxe6 {[%emt 0:01:16]} Qxd1 {[%emt 0:04:54]} 16. Raxd1 {[%emt 0:00:23]} Nxe3 {[%emt 0:00:58]} 17. Nc7+ {[%emt 0:00:28]} Ke7 {[%emt 0:01:29]} 18. fxe3 {[%emt 0:00:32]} Rad8 19. N7d5+ {[%emt 0:05:32]} Nxd5 {[%emt 0:04:51]} 20. Nxd5+ {[%emt 0:02:26]} Ke6 {[%emt 0:00:53]} 21. Bb3 {[%emt 0:01:29]} Ke5 {[%emt 0:00:50]} 22. Rc1 {[%emt 0:01:37]} Rc8 {[%emt 0:00:59]} 23. Rcd1 {[%emt 0:06:08]} Rhd8 {[%emt 0:01:02]} 24. Kf2 {[%emt 0:04:38]} f5 {[%emt 0:01:53]} 25. Nf4 {[%emt 0:04:18]} Bxe4 {[%emt 0:04:35]} 26. Ne6 {[%emt 0:04:14]} Re8 {[%emt 0:01:32]} 27. Nxc5 {[%emt 0:01:09]} Rxc5 {[%emt 0:01:41]} 28. Rd7 {[%emt 0:00:25]} a5 {[%emt 0:05:00]} 29. Rxg7 {[%emt 0:01:31]} a4 {[%emt 0:00:29]} 30. Bd1 {[%emt 0:00:37]} Rd8 {[%emt 0:00:39]} 31. Bf3 {[%emt 0:04:28]} Rd2+ {[%emt 0:01:59]} 32. Re2 {[%emt 0:01:29]} Rcc2 {[%emt 0:00:12]} 33. Rxd2 {[%emt 0:00:12]} Rxd2+ {[%emt 0:00:08]} 34. Kg3 {[%emt 0:00:06]} Bxf3 {[%emt 0:01:01]} 35. Kxf3 {[%emt 0:00:13]} Rxb2 {[%emt 0:00:21]} 36. Rxh7 {[%emt 0:00:10]} Rxa2 {[%emt 0:00:11]} 37. Rb7 {[%emt 0:00:05]} Rb2 {[%emt 0:01:32]} 38. Ra7 {[%emt 0:00:07]} Rc2 {[%emt 0:00:24]} 39. Ra5 {[%emt 0:00:35]} Rc5 {[%emt 0:00:59]} 40. h4 {[%emt 0:00:27]} Kd6 {[%emt 0:02:29]} 41. h5 {[%emt 0:00:37]} Kc6 {[%emt 0:00:05]} 42. h6 {[%emt 0:00:23]} Kb6 {[%emt 0:00:27]} 43. Ra8 {[%emt 0:00:09]} Rc7 {[%emt 0:00:08]} 44. Kf4 {[%emt 0:00:21]} Kb7 {[%emt 0:00:50]} 45. Rg8 {[%emt 0:00:16]} a3 {[%emt 0:00:48]} 46. Rd8 {[%emt 0:00:23]} a2 {[%emt 0:01:34]} 47. Rd1 {[%emt 0:00:07]} b4 {[%emt 0:00:18]} 48. Rh1 {[%emt 0:00:37]} Kb8 {[%emt 0:01:13]} 49. h7 {[%emt 0:00:57]} Rxh7 {[%emt 0:00:23]} 50. Rxh7 a1=Q {[%emt 0:00:08]} 51. Rh6 {[%emt 0:01:26]} Qf1+ {[%emt 0:00:58]} 52. Ke5 {[%emt 0:00:33]} Qb5+ {[%emt 0:00:23]} 53. Kf4 {[%emt 0:00:17]} b3 {[%emt 0:00:42]} 54. Rh8+ {[%emt 0:00:19]} Kc7 {[%emt 0:00:58]} 55. Rh7+ {[%emt 0:00:09]} Kd6 {[%emt 0:00:15]} 0-1

[Event "EYCC G10-ch 2024"]
[Site "Prague"]
[Date "2024.08.29"]
[Round "7.6"]
[White "Babazade, Khadija"]
[Black "Bhaumik, Mehr"]
[Result "0-1"]
[ECO "B90"]
[WhiteElo "1509"]
[BlackElo "1606"]
[Annotator "NA RC"]
[PlyCount "118"]
[EventDate "2024.08.19"]
[EventType "swiss"]
[EventCountry "CZE"]
[SourceTitle "playchess.com"]
[Source "ChessBase"]
[SourceQuality "1"]
[TimeControl "5400+30"]

1. e4 {[%emt 0:00:08]} c5 {[%emt 0:00:11]} 2. Nf3 {[%emt 0:00:17]} d6 {[%emt 0:00:11]} 3. d4 {[%emt 0:00:48]} cxd4 {[%emt 0:00:20]} 4. Nxd4 {[%emt 0:00:05]} Nf6 {[%emt 0:00:23]} 5. Nc3 {[%emt 0:00:09]} a6 {[%emt 0:00:42]} 6. f3 {[%emt 0:00:26]} e5 {[%emt 0:00:52]} 7. Nb3 {[%emt 0:00:04]} Be7 {[%emt 0:00:38]} 8. Be3 {[%emt 0:00:30]} Be6 {[%emt 0:00:30]} 9. Qd2 {[%emt 0:20:29]} Nbd7 {[%emt 0:03:47]} 10. O-O-O {[%emt 0:01:37]} b5 {[%emt 0:04:40]} 11. g4 {[%emt 0:04:51]} Nb6 {[%emt 0:07:16]} 12. Bxb6 {[%emt 0:20:56]} Qxb6 {[%emt 0:00:19]} 13. Kb1 {[%emt 0:07:00]} b4 {[%emt 0:06:46]} 14. Nd5 {[%emt 0:03:20]} Bxd5 {[%emt 0:02:46]} 15. exd5 {[%emt 0:00:11]} a5 {[%emt 0:00:41]} 16. Qd3 {[%emt 0:03:52]} Nd7 {[%emt 0:03:38]} 17. Qb5 {[%emt 0:01:33]} Qxb5 {[%emt 0:05:49]} 18. Bxb5 {[%emt 0:00:04]} Bg5 {[%emt 0:03:02]} 19. Bc6 {[%emt 0:02:04]} Ra7 {[%emt 0:01:30]} 20. Nd2 {[%emt 0:07:27]} Bxd2 {[%emt 0:07:04]} 21. Rxd2 {[%emt 0:00:06]} f6 {[%emt 0:02:12]} 22. Re2 {[%emt 0:05:39]} Kf7 {[%emt 0:02:08]} 23. Rhe1 {[%emt 0:04:22]} Nc5 {[%emt 0:02:06]} 24. b3 {[%emt 0:02:07]} Re7 {[%emt 0:04:44]} 25. h4 {[%emt 0:01:14]} h5 {[%emt 0:03:20]} 26. g5 {[%emt 0:04:50]} fxg5 {[%emt 0:07:59]} 27. hxg5 {[%emt 0:00:02]} Kg6 {[%emt 0:01:09]} 28. f4 {[%emt 0:03:40]} e4 {[%emt 0:02:13]} 29. Rf1 {[%emt 0:02:31]} Kf5 {[%emt 0:04:07]} 30. Re3 {[%emt 0:02:31]} Rf7 {[%emt 0:03:15]} 31. Bb5 {[%emt 0:01:08]} h4 {[%emt 0:04:43]} 32. Ree1 {[%emt 0:01:28]} h3 {[%emt 0:01:21]} 33. Rh1 {[%emt 0:00:38]} Re7 {[%emt 0:02:13]} 34. Ref1 {[%emt 0:00:16]} e3 {[%emt 0:01:00]} 35. Be2 {[%emt 0:00:34]} Ne4 {[%emt 0:04:11]} 36. Bd3 {[%emt 0:00:21]} h2 {[%emt 0:00:25]} 37. Kb2 {[%emt 0:00:34]} Kg6 {[%emt 0:04:13]} 38. Bxe4+ {[%emt 0:00:23]} Rxe4 {[%emt 0:00:09]} 39. c4 {[%emt 0:00:43]} e2 {[%emt 0:00:41]} 40. Re1 {[%emt 0:00:07]} Rh3 {[%emt 0:00:40]} 41. Kc2 {[%emt 0:00:40]} Rf3 {[%emt 0:03:07]} 42. Rxh2 {[%emt 0:00:36]} Rc3+ {[%emt 0:01:29]} 43. Kd2 {[%emt 0:00:47]} Rd4+ {[%emt 0:00:13]} 44. Kxe2 {[%emt 0:00:07]} Kf5 {[%emt 0:02:18]} 45. Kf1 {[%emt 0:00:51]} Rxf4+ {[%emt 0:00:53]} 46. Rf2 {[%emt 0:00:16]} Kxg5 {[%emt 0:00:51]} 47. Rxf4 {[%emt 0:00:06]} Kxf4 {[%emt 0:00:04]} 48. Re6 {[%emt 0:00:07]} a4 {[%emt 0:00:34]} 49. bxa4 {[%emt 0:01:11]} Rxc4 {[%emt 0:00:11]} 50. Rxd6 {[%emt 0:00:02]} Rc1+ {[%emt 0:00:24]} 51. Ke2 {[%emt 0:00:13]} Ke5 {[%emt 0:00:23]} 52. Rc6 {[%emt 0:01:34]} Rxc6 {[%emt 0:00:19]} 53. dxc6 {[%emt 0:00:03]} Kd6 {[%emt 0:00:10]} 54. Kd3 {[%emt 0:00:49]} Kxc6 {[%emt 0:00:10]} 55. Kd4 {[%emt 0:00:36]} g5 {[%emt 0:00:27]} 56. Ke4 {[%emt 0:00:02]} Kb6 {[%emt 0:00:18]} 57. Kf5 {[%emt 0:00:02]} Ka5 {[%emt 0:00:10]} 58. Kxg5 {[%emt 0:00:05]} Kxa4 {[%emt 0:00:10]} 59. Kf4 {[%emt 0:00:02]} Ka3 {[%emt 0:00:18]} 0-1